[Event "Czech Open-Rapid 2022"]
[Site "Pardubice"]
[Date "2022.07.20"]
[Round "2.27"]
[White "Aradhya, Garg"]
[Black "Shvachko, Gleb"]
[Result "1-0"]
[ECO "D35"]
[WhiteElo "2229"]
[BlackElo "1476"]
[Annotator "TA"]
[PlyCount "65"]
[EventDate "2022.07.20"]
[EventType "swiss"]
[EventCountry "CZE"]
[SourceTitle "playchess.com"]
[Source "ChessBase"]
[SourceQuality "1"]
[TimeControl "1200+10"]

{[%evp 12,65,20,18,42,37,36,29,80,70,88,34,97,7,14,7,14,0,0,0,24,14,24,0,0,0,135,127,318,293,456,469,625,618,663,618,869,725,805,789,2472,2435,2052,1115,2537,2482,29986,29987,29987,29987,29986,29987,29990,29988,29991,29992]} 1. d4 {[%emt 0:00:02]} d5 {[%emt 0:00:09]} 2. c4 {[%emt 0:00:07]} e6 {[%emt 0:00:02]} 3. Nc3 {[%emt 0:00:02]} Nf6 {[%emt 0:00:01]} 4. cxd5 {[%emt 0:00:01]} exd5 {[%emt 0:00:04]} 5. Bg5 {[%emt 0:00:02]} Be7 {[%emt 0:00:09]} 6. e3 {[%emt 0:00:01]} c6 {[%emt 0:00:31]} 7. Bd3 {[%emt 0:00:03]} Be6 {[%emt 0:00:49] D35: Queen's Gambit Declined: Exchange Variation.} 8. h3 {[%emt 0:00:04]} Nbd7 {[%emt 0:00:08]} 9. Nge2 {[%emt 0:00:02] [#]} Qb6 $146 {[%emt 0:00:44]} (9... O-O $11) ({Predecessor:} 9... h6 10. Bf4 O-O 11. g4 Re8 12. Rg1 c5 13. g5 hxg5 14. Bxg5 Ne4 15. Bh6 Bf8 16. Bxe4 dxe4 {1-0 (34) Martinovic,S (2524)-Wilhelm,J (2081) Neustadt an der Weinstrasse 2020}) 10. O-O $16 {[%emt 0:00:05]} O-O {[%emt 0:00:20]} 11. a3 {[%emt 0:00:38]} (11. f4 $16) 11... a5 {[%emt 0:00:36]} (11... Qxb2 $2 12. Na4 Qxa1 13. Qxa1 $18) ({Black should play} 11... h6 $14 12. Bf4 Qd8) 12. b4 {[%emt 0:01:03]} (12. f4 $16) 12... axb4 $11 {[%emt 0:00:50]} 13. axb4 {[%emt 0:00:02]} h6 {[%emt 0:01:54]} 14. Bxf6 {[%emt 0:00:07]} Nxf6 {[%emt 0:00:41]} 15. b5 {[%emt 0:00:02]} Bd6 {[%emt 0:00:48]} 16. bxc6 {[%emt 0:00:14]} bxc6 {[%emt 0:00:08]} 17. Rb1 {[%emt 0:00:10]} Qc7 {[%emt 0:00:07]} 18. Qc2 {[%emt 0:00:01]} c5 {[%emt 0:00:16] [#]} (18... Ra3 $11 {remains equal.}) 19. Nb5 $1 $16 {[%emt 0:00:03]} Qd7 {[%emt 0:00:29] This move loses the game for Black.} (19... Bh2+ $2 20. Kh1 Qc8 21. dxc5 $18 (21. Kxh2 c4 $16)) (19... Qe7 $16) 20. dxc5 $18 {[%emt 0:00:12]} Be5 {[%emt 0:00:59]} (20... Bc7 {was called for.} 21. c6 Qe7 22. Nxc7 Qxc7) 21. f4 {[%emt 0:00:24]} Bc7 {[%emt 0:00:25]} 22. f5 {[%emt 0:00:07]} Bxf5 {[%emt 0:00:29]} 23. Rxf5 {[%emt 0:00:37]} Rab8 {[%emt 0:00:37]} 24. Ned4 {[%emt 0:00:31][%cal Of5f6,Be2d4,Bd4f5,Bf5h6][%mdl 32] And now Rxf6! would win.} Qe7 {[%emt 0:00:21] [#]} 25. Rxf6 $1 {[%emt 0:00:44]} gxf6 {[%emt 0:00:54]} (25... Qxe3+ 26. Rf2) 26. Nf5 {[%emt 0:00:02]} Qe5 {[%emt 0:00:11]} 27. Nxh6+ {[%emt 0:00:12]} Kg7 {[%emt 0:00:45]} 28. Nf5+ {[%emt 0:00:15]} Kh8 {[%emt 0:00:16]} 29. Qe2 {[%emt 0:00:02] White mates.} Qh2+ {[%emt 0:00:41]} 30. Kf2 {[%emt 0:00:03]} Bg3+ {[%emt 0:00:54]} 31. Nxg3 {[%emt 0:00:03]} Rg8 {[%emt 0:00:06]} 32. Qh5+ {[%emt 0:00:07]} Kg7 {[%emt 0:00:05]} 33. Nd6 {[%emt 0:00:06] Weighted Error Value: White=0.15 (very precise) /Black=0.80} 1-0

[Event "Czech Open-Rapid 2022"]
[Site "Pardubice"]
[Date "2022.07.20"]
[Round "2.28"]
[White "Kuznecova, Marija"]
[Black "Sir, Zbynek"]
[Result "1/2-1/2"]
[ECO "B35"]
[WhiteElo "1755"]
[BlackElo "2199"]
[Annotator "TA"]
[PlyCount "80"]
[EventDate "2022.07.20"]
[EventType "swiss"]
[EventCountry "CZE"]
[SourceTitle "playchess.com"]
[Source "ChessBase"]
[SourceQuality "1"]
[TimeControl "1200+10"]

{[%evp 15,80,26,53,41,46,47,52,54,82,106,111,118,164,189,177,176,164,58,95,66,55,-64,81,74,207,212,289,241,229,235,898,891,879,49,47,49,43,36,49,49,49,25,49,39,41,10,10,20,10,0,0,0,0,0,0,0,0,-9,0,0,0,-33,0,0,0,0,0]} 1. e4 {[%emt 0:00:01]} c5 {[%emt 0:00:02]} 2. Nf3 {[%emt 0:00:02]} Nc6 {[%emt 0:00:01]} 3. d4 {[%emt 0:00:01]} cxd4 {[%emt 0:00:02]} 4. Nxd4 {[%emt 0:00:02]} Nf6 {[%emt 0:00:02]} 5. Nc3 {[%emt 0:00:02]} g6 {[%emt 0:00:02]} 6. Be3 {[%emt 0:00:10]} Bg7 {[%emt 0:00:03]} 7. Bc4 {[%emt 0:00:20]} O-O {[%emt 0:00:08]} 8. Bb3 {[%emt 0:00:01]} a6 {[%emt 0:00:53]} 9. f3 {[%emt 0:00:42] B35: Sicilian: Accelerated Dragon with 5 Nc3: main line.} Nxd4 {[%emt 0:01:00]} 10. Bxd4 {[%emt 0:00:05]} ({Much weaker is} 10. Qxd4 Ng4 $1 11. Qd3 Nxe3 12. Qxe3 e6 $15) 10... b5 {[%emt 0:00:01]} 11. Qd2 {[%emt 0:01:39] White is slightly better.} d6 {[%emt 0:01:25]} 12. h4 {[%emt 0:00:36][%cal Oh4h5]} h5 {[%emt 0:02:01]} 13. g4 {[%emt 0:01:12] White is more active.} e5 {[%emt 0:00:18]} (13... e6 $16 {is a better defense.}) 14. Be3 $18 {[%emt 0:00:27]} hxg4 {[%emt 0:00:09] [#]} 15. h5 $146 {[%emt 0:01:42]} ({Predecessor:} 15. O-O-O gxf3 16. h5 Nxh5 17. Nd5 Kh7 18. Rdg1 Rb8 19. Rxh5+ gxh5 20. Qh2 Rh8 21. Bg5 f2 22. Qxf2 Qd7 23. Nf6+ Bxf6 24. Qxf6 {1-0 (24) Milliet,S (2411)-Arbunic Castro,G (2098) Istanbul 2012}) 15... Nxh5 {[%emt 0:00:46]} (15... gxh5 $2 16. Bh6 Be6 17. O-O-O $18) 16. O-O-O {[%emt 0:01:10]} (16. Nd5 $1 $18 gxf3 17. Bg5) 16... g3 $14 {[%emt 0:02:44]} 17. Rdg1 {[%emt 0:03:35][%cal Oh1h5] Threatens to win with Rxh5!} Be6 {[%emt 0:01:09]} 18. Bg5 {[%emt 0:02:29] Prevents Qf6.} ({White should play} 18. Nd5 $14) 18... Qd7 {[%emt 0:05:46] [#]} (18... Bf6 $15 {stays ahead.} 19. Be3 Rb8) 19. Rxh5 $1 $16 {[%emt 0:04:14]} gxh5 {[%emt 0:00:02]} (19... Bxb3 $16 20. axb3 gxh5) 20. Rxg3 $18 {[%emt 0:00:02] White wants to mate with Bf6.} f6 {[%emt 0:00:09]} 21. Bh6 {[%emt 0:00:04]} Rf7 {[%emt 0:00:07] [#]} 22. Nd5 $1 {[%emt 0:00:10] Black must now prevent Bxg7.} Kf8 {[%emt 0:01:05] [#]} (22... h4 23. Rg6 (23. Rxg7+ Rxg7 24. Nxf6+ Kh8 $15) 23... Qa7) 23. Nxf6 $1 {[%emt 0:02:08][%mdl 576] Decoy} Rxf6 {[%emt 0:00:59]} 24. Bxg7+ $2 {[%emt 0:00:28]} (24. Rxg7 $18 Qxg7 25. Qxd6+ (25. Bxg7+ Kxg7 26. Qg5+ Kf7 $14) 25... Kg8 26. Bxg7 Kxg7 27. Bxe6) 24... Qxg7 $14 {[%emt 0:00:10]} 25. Rxg7 {[%emt 0:00:01]} Kxg7 {[%emt 0:00:01]} 26. Qg5+ {[%emt 0:00:14]} Kf7 $1 {[%emt 0:00:13]} 27. Qxh5+ {[%emt 0:00:02]} Ke7 {[%emt 0:00:05]} 28. Qh7+ {[%emt 0:00:32]} Rf7 {[%emt 0:00:08]} 29. Qh4+ {[%emt 0:00:15]} Kd7 {[%emt 0:00:05]} 30. Bxe6+ {[%emt 0:00:08]} (30. Bd5 $5 {[%cal Rd5a8]} Rb8 31. a3 $16) 30... Kxe6 {[%emt 0:00:01][%mdl 4096] Endgame KQ-KRR} 31. Qg4+ {[%emt 0:00:03]} Ke7 {[%emt 0:00:13]} 32. Kd2 {[%emt 0:00:30]} Raf8 {[%emt 0:00:11]} 33. Ke3 {[%emt 0:00:50]} Rf4 {[%emt 0:00:17]} 34. Qg5+ {[%emt 0:00:04]} Kd7 {[%emt 0:00:03]} 35. Qh5 {[%emt 0:00:17]} Kc6 {[%emt 0:00:08]} 36. b4 {[%emt 0:00:30]} Kd7 {[%emt 0:02:17]} 37. Ke2 {[%emt 0:00:13]} Kc6 {[%emt 0:00:04]} 38. Qh3 {[%emt 0:00:05]} Kc7 {[%emt 0:00:09]} 39. Qh7+ {[%emt 0:00:27]} R8f7 {[%emt 0:00:05]} 40. Qh3 {[%emt 0:00:01]} Rf8 {White really could win this.  Weighted Error Value: White=0.32/Black=0.26 (precise)} 1/2-1/2

[Event "Czech Open-Rapid 2022"]
[Site "Pardubice"]
[Date "2022.07.20"]
[Round "2.29"]
[White "Franc, Lubor"]
[Black "Silar, Lubomir"]
[Result "0-1"]
[ECO "B32"]
[WhiteElo "1747"]
[BlackElo "1993"]
[Annotator "TA"]
[PlyCount "96"]
[EventDate "2022.07.20"]
[EventType "swiss"]
[EventCountry "CZE"]
[SourceTitle "playchess.com"]
[Source "ChessBase"]
[SourceQuality "1"]
[TimeControl "1200+10"]

{[%evp 13,96,0,0,-12,-22,-14,14,10,14,10,10,16,47,10,49,56,55,16,39,22,48,47,62,18,94,44,79,5,50,6,36,-20,40,6,4,-46,-42,-74,-74,-91,-60,-74,-12,-12,-10,0,44,-92,-74,-145,-29,-72,-96,-283,-275,-320,-321,-458,-453,-551,-541,-587,-408,-403,-378,-463,-450,-549,-423,-908,-873,-866,-873,-1333,-1315,-1108,-838,-29988,-29989,-29988,-29977,-29974,-29975,-29987,-29988]} 1. e4 {[%emt 0:00:05]} c5 {[%emt 0:00:14]} 2. Nf3 {[%emt 0:00:03]} Nc6 {[%emt 0:00:03]} 3. d4 {[%emt 0:00:03]} cxd4 {[%emt 0:00:02]} 4. Nxd4 {[%emt 0:00:01]} e5 {[%emt 0:00:05]} 5. Nb3 {[%emt 0:00:02]} Nf6 {[%emt 0:00:06]} 6. Nc3 {[%emt 0:00:42]} Be7 {[%emt 0:01:17]} 7. g3 {[%emt 0:00:12]} d6 {[%emt 0:00:14]} 8. h3 {[%emt 0:00:51] B56: Classical Sicilian: Unusual Lines.} Be6 {[%emt 0:00:26]} 9. Bg2 {[%emt 0:00:04]} a6 {[%emt 0:00:08]} 10. O-O {[%emt 0:01:21] [#] The position is equal.} O-O $146 {[%emt 0:00:09]} ({Predecessor:} 10... Rc8 11. Be3 Na5 12. Nxa5 Qxa5 13. Qd2 Qc7 14. Rfc1 O-O 15. Nd5 Bxd5 16. exd5 Nd7 {1-0 (43) Arrieta Restrepo,S (1949)-Ruiperez Gumiel,R (1873) Aragon 2019}) 11. Nd5 {[%emt 0:00:45]} Bxd5 {[%emt 0:00:47]} 12. exd5 {[%emt 0:00:03]} Nb8 {[%emt 0:00:16]} 13. a4 {[%emt 0:00:08]} b6 {[%emt 0:00:16]} 14. Be3 {[%emt 0:00:43]} Nbd7 {[%emt 0:00:06]} 15. Nd2 {[%emt 0:01:32]} Rc8 {[%emt 0:00:34]} 16. c3 {[%emt 0:00:17][%cal Bc2c3,Bc3c4][%mdl 32]} Qc7 {[%emt 0:00:49]} 17. Qe2 {[%emt 0:00:21]} Qb7 {[%emt 0:00:16]} 18. c4 {[%emt 0:00:39]} Ne8 {[%emt 0:01:05]} (18... a5 $1 $11) 19. b3 {[%emt 0:01:28]} (19. b4 $16) 19... g6 {[%emt 0:00:09]} 20. Rab1 {[%emt 0:02:58]} ({White should play} 20. a5 $16) 20... Ng7 {[%emt 0:00:22][%cal Be8g7,Bg7f5,Bf5e3][%mdl 32]} 21. Bh6 {[%emt 0:00:27]} (21. b4 $5 {[%cal Rc4c5]} Qc7 22. Bh6 $14) 21... Rfe8 {[%emt 0:00:27]} 22. Ne4 {[%emt 0:02:26]} (22. g4 $14) 22... Nc5 {[%emt 0:01:10]} (22... Nf5 $11 23. Be3 Nc5) 23. Nxc5 {[%emt 0:01:16]} bxc5 {[%emt 0:00:07]} 24. Be3 {[%emt 0:01:37]} (24. Be4 $11) 24... Nf5 $15 {[%emt 0:01:07]} 25. g4 {[%emt 0:00:51]} Nxe3 {[%emt 0:01:09]} 26. Qxe3 {[%emt 0:00:04]} Bf6 {[%emt 0:00:39]} 27. Be4 {[%emt 0:00:41]} a5 {[%emt 0:00:56]} (27... Bh4 $17) 28. g5 $11 {[%emt 0:00:26]} Bg7 {[%emt 0:00:11]} 29. h4 {[%emt 0:00:07][%cal Oh4h5]} Qe7 {[%emt 0:03:25]} 30. Bg2 {[%emt 0:02:59]} (30. h5 $1 $14) 30... Rb8 {[%emt 0:01:01]} (30... f5 {is interesting.} 31. gxf6 Bxf6 32. f4 exf4 33. Qxe7 Bd4+) 31. Rfe1 {[%emt 0:00:13]} ({White should try} 31. Be4) 31... Rb4 {[%emt 0:00:53]} (31... f5 $17 {Threatens to win with ...e4.} 32. gxf6 Bxf6) 32. Qd3 {[%emt 0:01:09]} f5 {[%emt 0:01:46]} 33. f4 $2 {[%emt 0:00:18] [#] White does not recover from this.} (33. gxf6 $17 Bxf6 34. h5) 33... e4 $19 {[%emt 0:00:12]} 34. Qc2 {[%emt 0:00:15]} Reb8 {[%emt 0:00:11]} 35. Kh1 {[%emt 0:00:21]} (35. h5 {is a better defense.}) 35... Qb7 {[%emt 0:00:23]} 36. Bxe4 {[%emt 0:00:02]} fxe4 {[%emt 0:00:12]} 37. Qxe4 {[%emt 0:00:02]} Qf7 {[%emt 0:00:14]} 38. Re3 {[%emt 0:00:07]} Bd4 {[%emt 0:00:44]} 39. Rf3 {[%emt 0:00:02]} Re8 {[%emt 0:00:23]} 40. Qd3 {[%emt 0:00:02]} Qf5 {[%emt 0:00:23]} 41. Qf1 {[%emt 0:00:25]} (41. Qxf5 $142 gxf5 42. Kh2) 41... Rb7 {[%emt 0:00:41] [#] ( -> ...Rbe7)} 42. Re1 {[%emt 0:00:20]} Rbe7 {[%emt 0:00:06]} 43. Rxe7 {[%emt 0:00:08]} Rxe7 {[%emt 0:00:01]} 44. Kh2 {[%emt 0:00:20]} Qg4 {[%emt 0:00:23]} 45. f5 {[%emt 0:00:26]} Qxh4+ {[%emt 0:00:23] Black mates.} 46. Rh3 {[%emt 0:00:10]} Be5+ {[%emt 0:00:44]} 47. Kh1 {[%emt 0:00:01]} Qe4+ {[%emt 0:00:03]} 48. Kg1 {[%emt 0:00:24]} gxf5 {[%emt 0:00:15] Weighted Error Value: White=0.82/Black=0.37} 0-1

[Event "Czech Open-Rapid 2022"]
[Site "Pardubice"]
[Date "2022.07.20"]
[Round "2.30"]
[White "Schatz, Christian"]
[Black "Freibergs, Andrejs"]
[Result "1/2-1/2"]
[ECO "A05"]
[WhiteElo "2137"]
[BlackElo "1574"]
[Annotator "TA"]
[PlyCount "87"]
[EventDate "2022.07.20"]
[EventType "swiss"]
[EventCountry "CZE"]
[SourceTitle "playchess.com"]
[Source "ChessBase"]
[SourceQuality "1"]
[TimeControl "1200+10"]

{[%evp 24,87,68,60,76,18,10,11,0,-17,-15,-13,-18,-7,0,-21,6,7,7,0,6,0,30,30,30,6,30,30,37,37,225,31,31,31,41,42,53,31,31,31,31,0,31,26,33,0,0,0,0,0,0,0,0,0,0,0,0,0,0,0,0,0,0,0,0,0]} 1. Nf3 {[%emt 0:00:03]} Nf6 {[%emt 0:00:03]} 2. c4 {[%emt 0:00:05]} g6 {[%emt 0:00:03]} 3. Nc3 {[%emt 0:00:15]} Bg7 {[%emt 0:00:03]} 4. g3 {[%emt 0:00:14]} O-O {[%emt 0:00:15]} 5. Bg2 {[%emt 0:00:01]} c5 {[%emt 0:00:05]} 6. O-O {[%emt 0:00:05]} d6 {[%emt 0:01:16]} 7. d4 {[%emt 0:00:07]} cxd4 {[%emt 0:00:02]} 8. Nxd4 {[%emt 0:00:03]} Nc6 {[%emt 0:00:10]} 9. b3 {[%emt 0:00:33]} Nxd4 {[%emt 0:01:16]} 10. Qxd4 {[%emt 0:00:02]} Qa5 {[%emt 0:00:15]} 11. Bb2 {[%emt 0:00:25]} Ng4 {[%emt 0:01:48]} 12. Qd2 {[%emt 0:01:04]} Qh5 {[%emt 0:00:44]} 13. h3 {[%emt 0:01:03]} Nf6 {[%emt 0:00:14] E60: King's Indian: Unusual lines and Fianchetto Variation without Nc3.} 14. Nd5 {[%emt 0:00:35]} (14. h4 $16) 14... Nxd5 $11 {[%emt 0:02:28]} 15. Bxg7 {[%emt 0:00:08]} (15. g4 {is more complex.} Qh4 16. Bxg7 Kxg7 17. cxd5 f5 18. Rac1) 15... Kxg7 {[%emt 0:00:05]} 16. Qxd5 {[%emt 0:00:16]} Qxd5 {[%emt 0:00:06]} 17. cxd5 {[%emt 0:01:12]} Bd7 {[%emt 0:00:18]} 18. Rfc1 {[%emt 0:01:12]} Rac8 {[%emt 0:00:13] Against Rc7} 19. f4 {[%emt 0:00:54]} Rxc1+ {[%emt 0:00:27]} 20. Rxc1 {[%emt 0:00:01] And now Rc7 would win.} Rc8 {[%emt 0:00:01] Inhibits Rc7.} 21. Rxc8 {[%emt 0:00:12]} Bxc8 {[%emt 0:00:01][%mdl 4096] Endgame KB-KB} 22. Kf2 {[%emt 0:00:15]} h5 {[%emt 0:00:33] [#]} 23. e4 $146 {[%emt 0:00:14]} ({Predecessor:} 23. h4 Kf8 24. Ke3 Ke8 25. Kd4 Kd8 26. b4 Bd7 27. Be4 Bc8 28. Bd3 Bd7 29. e4 {½-½ (38) Van Riemsdijk,D (2250)-Lourenco,L Sao Paulo 1998}) 23... Kf6 {[%emt 0:00:35]} 24. h4 {[%emt 0:00:25]} Bg4 {[%emt 0:02:51]} 25. Ke3 {[%emt 0:00:19]} e5 {[%emt 0:02:06]} 26. dxe6 {[%emt 0:00:30]} fxe6 {[%emt 0:00:32] [#]} (26... Kxe6 $14 27. Bf1 Kf6) 27. Kd4 $2 {[%emt 0:00:15]} (27. e5+ $1 $18 dxe5 28. Bxb7) 27... Ke7 {[%emt 0:00:25]} 28. Bf1 {[%emt 0:01:07]} Kd7 {[%emt 0:01:29]} 29. Bd3 {[%emt 0:00:12]} Ke7 {[%emt 0:00:54]} 30. e5 {[%emt 0:00:23]} Bf5 {[%emt 0:00:08]} 31. exd6+ {[%emt 0:01:33]} Kxd6 {[%emt 0:00:05]} 32. Be4 {[%emt 0:00:35]} b6 {[%emt 0:00:20]} 33. b4 {[%emt 0:01:06] [#] aiming for b5.} a6 {[%emt 0:04:35]} 34. a3 {[%emt 0:04:02]} Bxe4 {[%emt 0:00:53] The position is equal.} 35. Kxe4 {[%emt 0:00:03] KP-KP} b5 {[%emt 0:00:00]} 36. Kd4 {[%emt 0:00:35]} Kd7 $1 {[%emt 0:00:01]} 37. Ke3 {[%emt 0:01:06]} Kc6 {[%emt 0:00:13]} 38. Ke4 {[%emt 0:01:23] Ke5 is the strong threat.} Kd6 {[%emt 0:00:03]} 39. Kd4 {[%emt 0:00:21]} Kd7 $1 {[%emt 0:00:02]} 40. Ke5 {[%emt 0:01:31] Strongly threatening Kf6.} Ke7 {[%emt 0:00:03]} 41. Kd4 {[%emt 0:00:21]} Kd6 {[%emt 0:00:14]} 42. Ke4 {[%emt 0:00:07]} Kd7 $1 {[%emt 0:00:01]} 43. Kd4 {[%emt 0:00:51]} Kd6 {[%emt 0:00:07]} 44. Ke4 {[%emt 0:00:02] Weighted Error Value: White=0.22 (precise) /Black=0.19 (very precise)} 1/2-1/2

[Event "Czech Open-Rapid 2022"]
[Site "Pardubice"]
[Date "2022.07.20"]
[Round "2.31"]
[White "Brozka, Karel"]
[Black "Gressmann, Moritz"]
[Result "0-1"]
[ECO "A48"]
[WhiteElo "2188"]
[BlackElo "2114"]
[Annotator "TA"]
[PlyCount "54"]
[EventDate "2022.07.20"]
[EventType "swiss"]
[EventCountry "CZE"]
[SourceTitle "playchess.com"]
[Source "ChessBase"]
[SourceQuality "1"]
[TimeControl "1200+10"]

{[%evp 9,54,6,8,0,56,21,42,34,27,-12,-13,-15,-20,-87,-75,-104,-92,-210,-206,-198,-206,-208,-203,-211,-182,-217,-214,-238,-235,-226,-208,-207,-200,-222,-216,-289,-268,-275,-218,-354,-354,-354,-354,-347,-323,-5506,-5491]} 1. d4 {[%emt 0:00:03]} Nf6 {[%emt 0:00:01]} 2. Nf3 {[%emt 0:00:01]} g6 {[%emt 0:00:00]} 3. Bf4 {[%emt 0:00:01]} Bg7 4. e3 O-O {[%emt 0:00:04]} 5. c4 {[%emt 0:00:01]} c5 {[%emt 0:00:11]} 6. Nc3 {[%emt 0:00:02] A48: 1 d4 Nf6 2 Nf3 g6: Torre, London and Colle Systems.} (6. dxc5 Na6 $15) 6... b6 {[%emt 0:00:22]} (6... cxd4 $11 7. exd4 (7. Nxd4 d6 $11) 7... d5) 7. Be2 {[%emt 0:00:03]} Bb7 {[%emt 0:00:04]} 8. O-O {[%emt 0:00:03] White is slightly better.} cxd4 {[%emt 0:00:34]} 9. exd4 {[%emt 0:00:10]} (9. Qxd4 Nh5 10. Qd2 Nxf4 11. exf4 Nc6 $15) 9... d5 {[%emt 0:00:13]} 10. Rc1 {[%emt 0:00:21]} Nc6 {[%emt 0:01:04][%cal Bb8c6,Bc6d4,Bd4e6][%mdl 32] [#]} 11. c5 $146 {[%emt 0:00:53]} (11. b3 $11 {remains equal.}) ({Predecessor:} 11. Re1 Rc8 12. b3 dxc4 13. bxc4 Na5 14. Ne5 Nd7 15. Nb5 a6 16. Na3 Nxe5 17. Bxe5 Bxe5 18. dxe5 {0-1 (47) Silva,M (1935)-Cubas,J (2469) Florianopolis 2022}) 11... Nh5 {[%emt 0:00:15] White is now going downhill.} 12. Be3 {[%emt 0:00:22]} bxc5 {[%emt 0:00:06]} 13. dxc5 {[%emt 0:00:14]} (13. Na4 $17) 13... d4 $19 {[%emt 0:00:11]} 14. Nxd4 {[%emt 0:00:45]} Nxd4 {[%emt 0:01:11]} ({Not} 14... Bxd4 15. Bxh5 gxh5 16. Qxh5 $17) 15. Bxh5 {[%emt 0:00:08]} gxh5 {[%emt 0:00:08]} 16. Qxh5 {[%emt 0:00:08]} Ne6 {[%emt 0:01:06]} 17. Rfd1 {[%emt 0:00:16]} Qc7 {[%emt 0:00:27]} 18. Nd5 {[%emt 0:00:17]} Bxd5 {[%emt 0:00:10]} 19. Rxd5 {[%emt 0:00:02]} Nf4 {[%emt 0:01:11]} 20. Bxf4 {[%emt 0:00:23]} Qxf4 {[%emt 0:00:01]} 21. Rcd1 {[%emt 0:00:29]} e6 {[%emt 0:01:35]} ({And not} 21... Bxb2 22. g3 Qe4 23. Qg5+ Kh8 24. Qd2) 22. R5d3 {[%emt 0:00:56]} Rac8 {[%emt 0:01:26]} ({But not} 22... Bxb2 $2 23. Rh3 Qf5 24. Rg3+ Kh8 25. Qxf5 exf5 26. Kf1 $19) 23. Rg3 {[%emt 0:01:22]} Kh8 {[%emt 0:01:39]} 24. Rg4 {[%emt 0:00:36] [#]} (24. b4 $142) 24... Rxc5 $3 {[%emt 0:01:27][%mdl 512]} 25. Qxc5 {[%emt 0:01:32]} (25. Rxf4 Rxh5) 25... Qxg4 {[%emt 0:00:02][%cal Rg4d1]} 26. Rd7 {[%emt 0:00:15]} Qa4 {[%emt 0:00:29]} 27. b4 $2 {[%emt 0:01:25]} (27. Qxa7 Qxa7 28. Rxa7) 27... Qxd7 {[%emt 0:00:03] Weighted Error Value: White=0.60/Black=0.14 (very precise)} 0-1

[Event "Czech Open-Rapid 2022"]
[Site "Pardubice"]
[Date "2022.07.20"]
[Round "2.32"]
[White "Polak, Benedikt"]
[Black "Hon, Jiri"]
[Result "1-0"]
[ECO "A16"]
[WhiteElo "2120"]
[BlackElo "1778"]
[Annotator "TA"]
[PlyCount "50"]
[EventDate "2022.07.20"]
[EventType "swiss"]
[EventCountry "CZE"]
[SourceTitle "playchess.com"]
[Source "ChessBase"]
[SourceQuality "1"]
[TimeControl "1200+10"]

{[%evp 14,50,31,46,44,31,41,4,25,40,30,41,70,34,42,22,16,6,17,7,13,5,85,68,80,57,191,183,252,252,259,234,530,521,511,510,1396,620,751]} 1. c4 {[%emt 0:00:02]} Nf6 {[%emt 0:00:06]} 2. Nc3 {[%emt 0:00:03]} g6 {[%emt 0:00:02]} 3. e4 {[%emt 0:00:04]} d6 {[%emt 0:00:01]} 4. g3 {[%emt 0:00:31]} Bg7 {[%emt 0:00:01]} 5. Bg2 {[%emt 0:00:02]} c6 {[%emt 0:00:01]} 6. Nge2 {[%emt 0:00:06]} O-O {[%emt 0:00:03]} 7. O-O {[%emt 0:00:41]} a6 {[%emt 0:00:02]} 8. d4 {[%emt 0:00:26] has lost popularity (8.a4).} b5 {[%emt 0:00:11] E72: King's Indian: 4 e4 d6 5 g3.} 9. b3 {[%emt 0:00:38] [#]} Qc7 $146 {[%emt 0:00:23]} ({Predecessor:} 9... e5 10. h3 Re8 11. dxe5 dxe5 12. Qc2 Be6 13. c5 Nfd7 14. Be3 a5 15. Nxb5 cxb5 {0-1 (44) Popovic,N (2258)-Nikolov,S (2317) Belgrade 2019}) 10. h3 {[%emt 0:00:32]} Bb7 {[%emt 0:00:02] The position is equal.} 11. Be3 {[%emt 0:00:18]} Nbd7 {[%emt 0:00:56]} 12. Rc1 {[%emt 0:00:07]} Qa5 {[%emt 0:00:48]} 13. Qd2 {[%emt 0:01:08]} Rfd8 {[%emt 0:00:58]} 14. f4 {[%emt 0:01:57]} e5 {[%emt 0:00:10]} 15. fxe5 {[%emt 0:02:20]} dxe5 {[%emt 0:00:04]} 16. d5 {[%emt 0:00:01]} bxc4 {[%emt 0:06:03]} 17. bxc4 {[%emt 0:00:08]} Bf8 {[%emt 0:02:24]} (17... Rac8 $11) 18. Bg5 {[%emt 0:03:53] White is more active.} Bg7 {[%emt 0:00:09]} 19. Kh2 {[%emt 0:00:29]} Qc5 {[%emt 0:01:55] Loses the game.} ({Black should play} 19... Rdc8 $14) 20. Na4 $36 {[%emt 0:02:43][%cal Bc3a4,Ba4b6,Bb6d7][%mdl 2080] White is in control.} Qf8 {[%emt 0:00:32]} (20... Qd6 $142 21. c5 Qf8) 21. Rb1 {[%emt 0:00:52]} Rab8 {[%emt 0:00:27]} 22. Nb6 {[%emt 0:03:11]} Re8 $2 {[%emt 0:02:15]} (22... cxd5 23. Nxd7 (23. exd5 Nxb6 24. Rxb6 Nd7 $18) (23. cxd5 Re8 $16) (23. Nxd5 Bxd5 24. cxd5 h6 $14) 23... Nxd7) 23. Nxd7 {[%emt 0:00:15] White is clearly winning.} Nxd7 {[%emt 0:00:02] [#]} 24. Rxb7 {[%emt 0:00:11]} Ra8 (24... Rxb7 $142 25. dxc6 Nc5 26. cxb7 Rb8) 25. Rbb1 Reb8 {Weighted Error Value: White=0.34/Black=0.48} 1-0